[Event "Late-Titled-Tuesday-Blitz-April-16-2024"]
[Site "Chess.com"]
[Date "2024.04.16"]
[Round "3"]
[White "Zavgorodniy_Sergiy"]
[Black "ATM622"]
[Result "1-0"]
[WhiteElo "2620"]
[BlackElo "2423"]
[TimeControl "180+1"]
[EndTime "14:27:46 PDT"]
[Termination "Zavgorodniy_Sergiy won by resignation"]

1. d4 {[%clk 0:03:00.9]} 1... Nf6 {[%clk 0:03:00]} 2. c4 {[%clk 0:03:01]} 2...
e6 {[%clk 0:02:59.3]} 3. Nf3 {[%clk 0:03:01.2]} 3... d5 {[%clk 0:02:59.5]} 4. e3
{[%clk 0:03:01.7]} 4... Be7 {[%clk 0:02:54.7]} 5. Nbd2 {[%clk 0:03:01.7]} 5...
O-O {[%clk 0:02:54.8]} 6. Bd3 {[%clk 0:03:01.6]} 6... dxc4 {[%clk 0:02:54.3]} 7.
Nxc4 {[%clk 0:03:01.3]} 7... c5 {[%clk 0:02:54.8]} 8. O-O {[%clk 0:02:59.2]}
8... Nc6 {[%clk 0:02:55.1]} 9. dxc5 {[%clk 0:02:59.1]} 9... Bxc5 {[%clk
0:02:53.4]} 10. a3 {[%clk 0:02:59.3]} 10... a5 {[%clk 0:02:52.7]} 11. b3 {[%clk
0:02:58]} 11... Qd5 {[%clk 0:02:45.7]} 12. Bb2 {[%clk 0:02:51]} 12... Rd8 {[%clk
0:02:42.4]} 13. Be2 {[%clk 0:02:50.2]} 13... Ne4 {[%clk 0:02:33.5]} 14. Qc2
{[%clk 0:02:41.3]} 14... Nf6 {[%clk 0:01:20.2]} 15. Rfd1 {[%clk 0:02:36.8]}
15... Qe4 {[%clk 0:01:12.2]} 16. Rxd8+ {[%clk 0:02:25.5]} 16... Nxd8 {[%clk
0:01:12.3]} 17. Bd3 {[%clk 0:02:14.3]} 17... Qg4 {[%clk 0:01:12]} 18. Bxf6
{[%clk 0:02:09.5]} 18... gxf6 {[%clk 0:01:12.9]} 19. Bxh7+ {[%clk 0:02:09.1]}
19... Kg7 {[%clk 0:01:13]} 20. Be4 {[%clk 0:02:03.3]} 20... f5 {[%clk
0:01:05.5]} 21. Nce5 {[%clk 0:01:59]} 21... Qxe4 {[%clk 0:00:54.8]} 22. Qxc5
{[%clk 0:01:57.2]} 22... Nc6 {[%clk 0:00:41.7]} 23. Nxf7 {[%clk 0:01:41.2]}
23... Qd3 {[%clk 0:00:29.9]} 24. N7e5 {[%clk 0:01:30.6]} 24... Qxb3 {[%clk
0:00:29.5]} 25. Nxc6 {[%clk 0:01:26.1]} 25... bxc6 {[%clk 0:00:24.2]} 26. Qe7+
{[%clk 0:01:26.2]} 26... Kg8 {[%clk 0:00:18.2]} 27. Ne5 {[%clk 0:01:18.4]} 27...
Qb7 {[%clk 0:00:14.2]} 28. Qe8+ {[%clk 0:01:08.9]} 28... Kg7 {[%clk 0:00:13.5]}
29. Qg6+ {[%clk 0:01:04.7]} 29... Kf8 {[%clk 0:00:13.2]} 30. Rd1 {[%clk
0:01:04.3]} 30... Ra6 {[%clk 0:00:03.3]} 31. Rd8+ {[%clk 0:00:52.5]} 31... Ke7
{[%clk 0:00:03.4]} 32. Qe8+ {[%clk 0:00:38.9]} 32... Kf6 {[%clk 0:00:03.6]} 33.
Qh8+ {[%clk 0:00:36.4]} 33... Ke7 {[%clk 0:00:03]} 34. Ng6+ {[%clk 0:00:32.3]}
34... Kf7 {[%clk 0:00:03.1]} 35. Rf8+ {[%clk 0:00:28]} 35... Kxg6 {[%clk
0:00:03.3]} 36. Qf6+ {[%clk 0:00:27.2]} 36... Kh5 {[%clk 0:00:03.7]} 37. Rh8+
{[%clk 0:00:26.9]} 1-0

[Event "Late-Titled-Tuesday-Blitz-April-16-2024"]
[Site "Chess.com"]
[Date "2024.04.16"]
[Round "3"]
[White "IndianSchoolOfSuffering"]
[Black "giovannibrandao7"]
[Result "1-0"]
[WhiteElo "2441"]
[BlackElo "2235"]
[TimeControl "180+1"]
[EndTime "14:27:47 PDT"]
[Termination "IndianSchoolOfSuffering won by resignation"]

1. d4 {[%clk 0:02:49.6]} 1... Nf6 {[%clk 0:02:59.2]} 2. Nf3 {[%clk 0:02:45.7]}
2... g6 {[%clk 0:02:59]} 3. c4 {[%clk 0:02:40.8]} 3... Bg7 {[%clk 0:02:58.9]} 4.
Nc3 {[%clk 0:02:41.5]} 4... d5 {[%clk 0:02:58.9]} 5. cxd5 {[%clk 0:02:40.8]}
5... Nxd5 {[%clk 0:02:59.8]} 6. e4 {[%clk 0:02:41.1]} 6... Nxc3 {[%clk
0:02:59.3]} 7. bxc3 {[%clk 0:02:42]} 7... c5 {[%clk 0:02:59.8]} 8. Be3 {[%clk
0:02:39.7]} 8... Nc6 {[%clk 0:02:59.9]} 9. Be2 {[%clk 0:02:33.9]} 9... cxd4
{[%clk 0:02:59.6]} 10. cxd4 {[%clk 0:02:33.3]} 10... O-O {[%clk 0:03:00.1]} 11.
O-O {[%clk 0:02:31]} 11... b6 {[%clk 0:02:59.9]} 12. Rc1 {[%clk 0:02:26]} 12...
Bb7 {[%clk 0:02:59.8]} 13. d5 {[%clk 0:02:23.8]} 13... Ne5 {[%clk 0:02:34.9]}
14. Nd4 {[%clk 0:02:17.2]} 14... Rc8 {[%clk 0:02:27.8]} 15. Qa4 {[%clk
0:02:09.1]} 15... a6 {[%clk 0:02:11.7]} 16. f4 {[%clk 0:01:54.5]} 16... Nd7
{[%clk 0:02:07.8]} 17. Nc6 {[%clk 0:01:47.8]} 17... Bxc6 {[%clk 0:02:07.6]} 18.
dxc6 {[%clk 0:01:46.6]} 18... Nc5 {[%clk 0:02:08.1]} 19. Bxc5 {[%clk 0:01:31.4]}
19... bxc5 {[%clk 0:02:09]} 20. Qxa6 {[%clk 0:01:30.5]} 20... Bd4+ {[%clk
0:01:29.3]} 21. Kh1 {[%clk 0:01:29.5]} 21... Qd6 {[%clk 0:01:29.7]} 22. e5
{[%clk 0:01:09.1]} 22... Qxc6 {[%clk 0:01:25.5]} 23. Qxc6 {[%clk 0:01:06.7]}
23... Rxc6 {[%clk 0:01:26.4]} 24. Rfd1 {[%clk 0:01:06.4]} 24... Rb6 {[%clk
0:01:23.7]} 25. Rb1 {[%clk 0:00:47.9]} 25... Rfb8 {[%clk 0:01:22.7]} 26. Rxb6
{[%clk 0:00:47.6]} 26... Rxb6 {[%clk 0:01:23.6]} 27. a4 {[%clk 0:00:42.2]} 27...
Rb2 {[%clk 0:01:23.1]} 28. Bb5 {[%clk 0:00:38.5]} 28... Rb4 {[%clk 0:01:16.3]}
29. g3 {[%clk 0:00:36.2]} 29... Bb2 {[%clk 0:01:09.1]} 30. Rd8+ {[%clk
0:00:32.3]} 30... Kg7 {[%clk 0:01:08.8]} 31. Rd7 {[%clk 0:00:32.9]} 31... c4
{[%clk 0:01:04.2]} 32. Rxe7 {[%clk 0:00:28.4]} 32... c3 {[%clk 0:01:04.4]} 33.
Rc7 {[%clk 0:00:28.9]} 33... Rd4 {[%clk 0:00:44.5]} 34. Kg2 {[%clk 0:00:22.5]}
34... Rd2+ {[%clk 0:00:43.6]} 35. Kf3 {[%clk 0:00:20.2]} 35... c2 {[%clk
0:00:44]} 36. e6 {[%clk 0:00:14.8]} 36... c1=Q {[%clk 0:00:43.4]} 37. Rxc1
{[%clk 0:00:14.1]} 37... Bxc1 {[%clk 0:00:44.3]} 38. e7 {[%clk 0:00:14.1]} 1-0

[Event "Late-Titled-Tuesday-Blitz-April-16-2024"]
[Site "Chess.com"]
[Date "2024.04.16"]
[Round "3"]
[White "Mops_2004"]
[Black "kylelancman"]
[Result "1-0"]
[WhiteElo "2814"]
[BlackElo "2487"]
[TimeControl "180+1"]
[EndTime "14:27:49 PDT"]
[Termination "Mops_2004 won by resignation"]

1. g3 {[%clk 0:03:00.9]} 1... c5 {[%clk 0:02:53.7]} 2. Bg2 {[%clk 0:03:00.7]}
2... Nc6 {[%clk 0:02:50.1]} 3. c4 {[%clk 0:03:00.6]} 3... g6 {[%clk 0:02:49.1]}
4. Nc3 {[%clk 0:03:00.6]} 4... Bg7 {[%clk 0:02:49.7]} 5. d3 {[%clk 0:03:00.7]}
5... e5 {[%clk 0:02:48.7]} 6. Nf3 {[%clk 0:02:57]} 6... Nge7 {[%clk 0:02:48.6]}
7. Nd2 {[%clk 0:02:57.2]} 7... O-O {[%clk 0:02:40.9]} 8. Nf1 {[%clk 0:02:57.2]}
8... d6 {[%clk 0:02:40.1]} 9. Ne3 {[%clk 0:02:57.2]} 9... Be6 {[%clk 0:02:40.1]}
10. O-O {[%clk 0:02:52.5]} 10... Qd7 {[%clk 0:02:37.4]} 11. a3 {[%clk
0:02:48.4]} 11... Bh3 {[%clk 0:02:36]} 12. Bxh3 {[%clk 0:02:42.9]} 12... Qxh3
{[%clk 0:02:36.9]} 13. Ned5 {[%clk 0:02:42]} 13... Nxd5 {[%clk 0:02:36.1]} 14.
Nxd5 {[%clk 0:02:41.1]} 14... Qd7 {[%clk 0:02:34.9]} 15. Bg5 {[%clk 0:02:32.7]}
15... f6 {[%clk 0:02:33]} 16. Bd2 {[%clk 0:02:32.5]} 16... Ne7 {[%clk
0:02:33.2]} 17. Nxe7+ {[%clk 0:02:32.5]} 17... Qxe7 {[%clk 0:02:33.7]} 18. b4
{[%clk 0:02:33]} 18... b6 {[%clk 0:02:33.4]} 19. e4 {[%clk 0:02:25.6]} 19... f5
{[%clk 0:02:33.2]} 20. f3 {[%clk 0:02:25]} 20... f4 {[%clk 0:02:31.9]} 21. Kg2
{[%clk 0:02:21.6]} 21... g5 {[%clk 0:02:31]} 22. g4 {[%clk 0:02:18.5]} 22... h5
{[%clk 0:02:25.2]} 23. h3 {[%clk 0:02:01.1]} 23... Kf7 {[%clk 0:02:21.3]} 24. a4
{[%clk 0:01:58.8]} 24... hxg4 {[%clk 0:02:03.4]} 25. hxg4 {[%clk 0:01:58.1]}
25... Rh8 {[%clk 0:02:01.7]} 26. a5 {[%clk 0:01:56.2]} 26... Rh6 {[%clk
0:01:54.2]} 27. axb6 {[%clk 0:01:25.8]} 27... a6 {[%clk 0:00:45.8]} 28. Rh1
{[%clk 0:01:01.6]} 28... Rxh1 {[%clk 0:00:39.1]} 29. Qxh1 {[%clk 0:01:00.4]}
29... Rh8 {[%clk 0:00:39.8]} 30. Qg1 {[%clk 0:00:41.4]} 30... Qb7 {[%clk
0:00:37.1]} 31. bxc5 {[%clk 0:00:41.2]} 31... dxc5 {[%clk 0:00:27.4]} 32. Qxc5
{[%clk 0:00:40.8]} 32... Rb8 {[%clk 0:00:22.4]} 33. Qc7+ {[%clk 0:00:36.7]}
33... Qxc7 {[%clk 0:00:19.7]} 34. bxc7 {[%clk 0:00:37.1]} 34... Rc8 {[%clk
0:00:20.6]} 35. Ba5 {[%clk 0:00:36.7]} 35... Bf8 {[%clk 0:00:20.2]} 36. Rb1
{[%clk 0:00:34.1]} 36... Bd6 {[%clk 0:00:20.3]} 37. Rb6 {[%clk 0:00:30.5]} 37...
Ke7 {[%clk 0:00:17.5]} 38. Rxa6 {[%clk 0:00:30.8]} 38... Bxc7 {[%clk 0:00:17.5]}
39. Ra7 {[%clk 0:00:28.1]} 39... Kd6 {[%clk 0:00:17.8]} 40. Rxc7 {[%clk
0:00:28.2]} 40... Rxc7 {[%clk 0:00:18.7]} 41. Bxc7+ {[%clk 0:00:28.6]} 41...
Kxc7 {[%clk 0:00:19.6]} 42. Kf2 {[%clk 0:00:28.7]} 42... Kb6 {[%clk 0:00:20.3]}
43. Ke2 {[%clk 0:00:29.1]} 43... Ka5 {[%clk 0:00:21]} 44. d4 {[%clk 0:00:27.5]}
44... exd4 {[%clk 0:00:17.6]} 45. Kd3 {[%clk 0:00:28.4]} 1-0

[Event "Late-Titled-Tuesday-Blitz-April-16-2024"]
[Site "Chess.com"]
[Date "2024.04.16"]
[Round "3"]
[White "Szachulec75"]
[Black "Godzillator"]
[Result "0-1"]
[WhiteElo "2095"]
[BlackElo "2377"]
[TimeControl "180+1"]
[EndTime "14:27:49 PDT"]
[Termination "Godzillator won by resignation"]

1. Nf3 {[%clk 0:03:00.9]} 1... b6 {[%clk 0:02:56.7]} 2. g3 {[%clk 0:03:00.5]}
2... Bb7 {[%clk 0:02:57]} 3. Bg2 {[%clk 0:03:01]} 3... e6 {[%clk 0:02:56.6]} 4.
O-O {[%clk 0:03:01.4]} 4... Be7 {[%clk 0:02:57]} 5. d3 {[%clk 0:03:01.8]} 5...
Nf6 {[%clk 0:02:57.4]} 6. e4 {[%clk 0:03:02.3]} 6... d6 {[%clk 0:02:56.8]} 7. b3
{[%clk 0:03:01.3]} 7... O-O {[%clk 0:02:56.8]} 8. Bb2 {[%clk 0:03:01.9]} 8... a5
{[%clk 0:02:56.5]} 9. a3 {[%clk 0:03:01.2]} 9... Nbd7 {[%clk 0:02:56.1]} 10.
Nbd2 {[%clk 0:02:59.6]} 10... Re8 {[%clk 0:02:55.5]} 11. h3 {[%clk 0:02:59.5]}
11... Bf8 {[%clk 0:02:54.2]} 12. Qe2 {[%clk 0:02:58.8]} 12... g6 {[%clk
0:02:53.9]} 13. Nh2 {[%clk 0:02:57.6]} 13... e5 {[%clk 0:02:45.8]} 14. Ng4
{[%clk 0:02:53.7]} 14... Bg7 {[%clk 0:02:40.7]} 15. Ne3 {[%clk 0:02:53.2]} 15...
Nc5 {[%clk 0:02:36.5]} 16. f4 {[%clk 0:02:48.1]} 16... exf4 {[%clk 0:02:35.1]}
17. gxf4 {[%clk 0:02:47.7]} 17... Ne6 {[%clk 0:02:34.1]} 18. f5 {[%clk
0:02:36.1]} 18... Nc5 {[%clk 0:02:27]} 19. b4 {[%clk 0:02:19.3]} 19... Na4
{[%clk 0:02:22.4]} 20. Bd4 {[%clk 0:01:57]} 20... c5 {[%clk 0:01:08.7]} 21. Bxf6
{[%clk 0:01:54.3]} 21... Bxf6 {[%clk 0:01:07.8]} 22. Rae1 {[%clk 0:01:55.2]}
22... Bd4 {[%clk 0:00:47.5]} 23. Kh1 {[%clk 0:01:52.1]} 23... Qg5 {[%clk
0:00:47.2]} 24. Ng4 {[%clk 0:01:50.5]} 24... Nc3 {[%clk 0:00:46.4]} 25. Qf3
{[%clk 0:01:41.4]} 25... Rf8 {[%clk 0:00:43.6]} 26. Nb3 {[%clk 0:01:37.7]} 26...
axb4 {[%clk 0:00:32.5]} 27. Nxd4 {[%clk 0:01:35.9]} 27... cxd4 {[%clk
0:00:32.1]} 28. axb4 {[%clk 0:01:36.5]} 28... gxf5 {[%clk 0:00:25.2]} 29. Qxf5
{[%clk 0:01:29.5]} 29... Qxf5 {[%clk 0:00:25.2]} 30. Rxf5 {[%clk 0:01:29.8]}
30... Kg7 {[%clk 0:00:20.6]} 31. Rg5+ {[%clk 0:01:27.4]} 31... Kh8 {[%clk
0:00:20.1]} 32. Nf6 {[%clk 0:01:27]} 32... Rg8 {[%clk 0:00:16.1]} 33. Nxg8
{[%clk 0:01:22.7]} 33... Rxg8 {[%clk 0:00:16.2]} 34. Rxg8+ {[%clk 0:01:23.6]}
34... Kxg8 {[%clk 0:00:16.7]} 35. Ra1 {[%clk 0:01:22.4]} 35... Kg7 {[%clk
0:00:14.4]} 36. Ra7 {[%clk 0:01:22.7]} 36... Bc6 {[%clk 0:00:14.7]} 37. Rc7
{[%clk 0:01:20.7]} 37... Ba4 {[%clk 0:00:14.4]} 38. Rc4 {[%clk 0:01:15.1]} 38...
Bxc2 {[%clk 0:00:14.1]} 39. Rxd4 {[%clk 0:01:15.5]} 39... b5 {[%clk 0:00:12]}
40. Rxd6 {[%clk 0:01:15.2]} 40... Ne2 {[%clk 0:00:12.3]} 41. d4 {[%clk 0:01:12]}
41... Nf4 {[%clk 0:00:12.2]} 42. e5 {[%clk 0:01:10.5]} 42... Bd3 {[%clk
0:00:11]} 43. Kh2 {[%clk 0:01:06.1]} 43... h5 {[%clk 0:00:10.4]} 44. Kg3 {[%clk
0:01:05.3]} 44... Ne2+ {[%clk 0:00:10.9]} 45. Kf2 {[%clk 0:01:04.4]} 45... Nc3
{[%clk 0:00:11.1]} 46. d5 {[%clk 0:01:01.1]} 46... Bf5 {[%clk 0:00:10.7]} 47. e6
{[%clk 0:01:00.3]} 47... fxe6 {[%clk 0:00:10.6]} 48. dxe6 {[%clk 0:01:00.9]}
48... Kf6 {[%clk 0:00:11.1]} 49. Rc6 {[%clk 0:00:58]} 49... Ne4+ {[%clk
0:00:10.1]} 50. Bxe4 {[%clk 0:00:57.5]} 50... Bxe4 {[%clk 0:00:11]} 51. Ke3
{[%clk 0:00:57]} 51... Bxc6 {[%clk 0:00:10.4]} 52. h4 {[%clk 0:00:56.5]} 52...
Kxe6 {[%clk 0:00:11.3]} 53. Kd4 {[%clk 0:00:56.3]} 53... Kf5 {[%clk 0:00:11.3]}
54. Kc5 {[%clk 0:00:55.8]} 54... Be8 {[%clk 0:00:12]} 55. Kd6 {[%clk 0:00:56.1]}
55... Kg4 {[%clk 0:00:12.9]} 0-1

[Event "Late-Titled-Tuesday-Blitz-April-16-2024"]
[Site "Chess.com"]
[Date "2024.04.16"]
[Round "3"]
[White "duone"]
[Black "DonJuanEGenaro"]
[Result "0-1"]
[WhiteElo "2326"]
[BlackElo "1996"]
[TimeControl "180+1"]
[EndTime "14:27:49 PDT"]
[Termination "DonJuanEGenaro won on time"]

1. e4 {[%clk 0:03:00.9]} 1... c5 {[%clk 0:02:59.4]} 2. Nf3 {[%clk 0:02:59.6]}
2... Nc6 {[%clk 0:02:59.2]} 3. d4 {[%clk 0:02:59.6]} 3... cxd4 {[%clk
0:02:58.3]} 4. Nxd4 {[%clk 0:02:59.7]} 4... Nf6 {[%clk 0:02:58.3]} 5. Nc3 {[%clk
0:02:58.9]} 5... d6 {[%clk 0:02:58.4]} 6. Bg5 {[%clk 0:02:58.1]} 6... Qb6 {[%clk
0:02:58.2]} 7. Nb3 {[%clk 0:02:57.2]} 7... e6 {[%clk 0:02:57.8]} 8. Qd2 {[%clk
0:02:56.1]} 8... a6 {[%clk 0:02:57.9]} 9. O-O-O {[%clk 0:02:55.2]} 9... Bd7
{[%clk 0:02:57.3]} 10. Be3 {[%clk 0:02:55.3]} 10... Qc7 {[%clk 0:02:56.1]} 11.
f3 {[%clk 0:02:52.9]} 11... b5 {[%clk 0:02:54.1]} 12. g4 {[%clk 0:02:52.8]}
12... b4 {[%clk 0:02:53.6]} 13. Ne2 {[%clk 0:02:48.6]} 13... Ne5 {[%clk
0:02:49.5]} 14. Bg2 {[%clk 0:02:46.6]} 14... Nc4 {[%clk 0:02:48.1]} 15. Qd4
{[%clk 0:02:44.3]} 15... Rc8 {[%clk 0:02:40.5]} 16. g5 {[%clk 0:02:43.4]} 16...
Nxe3 {[%clk 0:02:39.5]} 17. c3 {[%clk 0:02:32.5]} 17... Nxd1 {[%clk 0:02:35.1]}
18. Rxd1 {[%clk 0:02:31.6]} 18... bxc3 {[%clk 0:02:22.2]} 19. gxf6 {[%clk
0:02:19.4]} 19... cxb2+ {[%clk 0:02:22]} 20. Kxb2 {[%clk 0:02:19.7]} 20... Qc2+
{[%clk 0:02:17]} 21. Ka1 {[%clk 0:02:17.3]} 21... Qxe2 {[%clk 0:02:11.8]} 22.
Bf1 {[%clk 0:02:14.8]} 22... Qxh2 {[%clk 0:01:59.7]} 23. fxg7 {[%clk 0:02:14.6]}
23... Rg8 {[%clk 0:01:52.5]} 24. gxf8=Q+ {[%clk 0:02:12.4]} 24... Kxf8 {[%clk
0:01:48.4]} 25. e5 {[%clk 0:01:21.2]} 25... d5 {[%clk 0:01:39.2]} 26. Bxa6
{[%clk 0:01:19.1]} 26... Rc2 {[%clk 0:01:36.6]} 27. Qb4+ {[%clk 0:01:15.4]}
27... Kg7 {[%clk 0:01:35.1]} 28. Qa4 {[%clk 0:00:59.3]} 28... Qxe5+ {[%clk
0:01:28.5]} 29. Qd4 {[%clk 0:00:58.7]} 29... Qxd4+ {[%clk 0:01:25.3]} 30. Nxd4
{[%clk 0:00:58.5]} 30... Rf2 {[%clk 0:01:20.3]} 31. Rg1+ {[%clk 0:00:49.7]}
31... Kf8 {[%clk 0:01:18.7]} 32. Rh1 {[%clk 0:00:48.8]} 32... Rgg2 {[%clk
0:01:17.7]} 33. Bd3 {[%clk 0:00:41.3]} 33... Rxa2+ {[%clk 0:01:16.5]} 34. Kb1
{[%clk 0:00:42]} 34... Rgb2+ {[%clk 0:01:15.8]} 35. Kc1 {[%clk 0:00:42.7]} 35...
Rd2 {[%clk 0:01:15.4]} 36. Bb1 {[%clk 0:00:32.1]} 36... Rab2 {[%clk 0:01:09.5]}
37. Nb3 {[%clk 0:00:28.2]} 37... Rf2 {[%clk 0:01:08.3]} 38. Nd4 {[%clk
0:00:26.7]} 38... Rbd2 {[%clk 0:01:04.5]} 39. Nb3 {[%clk 0:00:25.5]} 39... Rde2
{[%clk 0:01:03]} 40. Nd4 {[%clk 0:00:24.8]} 40... Re3 {[%clk 0:01:02.8]} 41.
Bxh7 {[%clk 0:00:23.2]} 41... Ba4 {[%clk 0:00:59.7]} 42. Rg1 {[%clk 0:00:06.9]}
42... e5 {[%clk 0:00:58.9]} 43. Nf5 {[%clk 0:00:03.8]} 43... Rc3+ {[%clk
0:00:57.5]} 44. Kb1 {[%clk 0:00:04.3]} 44... Ke8 {[%clk 0:00:54.4]} 45. Rg8+
{[%clk 0:00:03.5]} 45... Kd7 {[%clk 0:00:54.3]} 46. Rb8 {[%clk 0:00:02.7]} 46...
Rcc2 {[%clk 0:00:48.4]} 47. Rb7+ {[%clk 0:00:02.3]} 47... Kc6 {[%clk 0:00:47.7]}
0-1

[Event "Late-Titled-Tuesday-Blitz-April-16-2024"]
[Site "Chess.com"]
[Date "2024.04.16"]
[Round "3"]
[White "Aygehovit1992"]
[Black "SpeedofLight0"]
[Result "1-0"]
[WhiteElo "2787"]
[BlackElo "3055"]
[TimeControl "180+1"]
[EndTime "14:27:51 PDT"]
[Termination "Aygehovit1992 won by checkmate"]

1. e4 {[%clk 0:02:46.7]} 1... Nc6 {[%clk 0:02:59.9]} 2. Nf3 {[%clk 0:02:45.5]}
2... d6 {[%clk 0:03:00.2]} 3. d4 {[%clk 0:02:45.7]} 3... Nf6 {[%clk 0:03:00.4]}
4. Nc3 {[%clk 0:02:45.5]} 4... g6 {[%clk 0:03:01]} 5. d5 {[%clk 0:02:45.8]} 5...
Nb8 {[%clk 0:03:01]} 6. Bf4 {[%clk 0:02:45.4]} 6... Bg7 {[%clk 0:03:00.7]} 7.
Qd2 {[%clk 0:02:45.9]} 7... Bg4 {[%clk 0:03:00.4]} 8. Nd4 {[%clk 0:02:41.5]}
8... c5 {[%clk 0:02:58.3]} 9. dxc6 {[%clk 0:02:40.4]} 9... Nxc6 {[%clk
0:02:58.6]} 10. Nxc6 {[%clk 0:02:40.7]} 10... bxc6 {[%clk 0:02:59.5]} 11. f3
{[%clk 0:02:38.6]} 11... Be6 {[%clk 0:02:59.5]} 12. Bh6 {[%clk 0:02:38.7]} 12...
Bxh6 {[%clk 0:02:58.6]} 13. Qxh6 {[%clk 0:02:39.6]} 13... Qb6 {[%clk 0:02:59.2]}
14. O-O-O {[%clk 0:02:32.9]} 14... Rb8 {[%clk 0:02:59.2]} 15. b3 {[%clk
0:02:33.3]} 15... Qa5 {[%clk 0:02:56.2]} 16. Kb2 {[%clk 0:02:31.1]} 16... g5
{[%clk 0:02:46]} 17. h4 {[%clk 0:02:25.5]} 17... Rg8 {[%clk 0:02:41.9]} 18. hxg5
{[%clk 0:02:24.8]} 18... Rxg5 {[%clk 0:02:42.8]} 19. Rxd6 {[%clk 0:01:59]} 19...
Rg6 {[%clk 0:02:35.4]} 20. Qxg6 {[%clk 0:01:51.5]} 20... fxg6 {[%clk 0:02:29.3]}
21. Rxe6 {[%clk 0:01:51]} 21... Rb4 {[%clk 0:02:03.4]} 22. Rxc6 {[%clk
0:01:38.4]} 22... Rb7 {[%clk 0:01:30.9]} 23. Bc4 {[%clk 0:01:27.7]} 23... Rc7
{[%clk 0:01:30.9]} 24. Rxc7 {[%clk 0:01:07.6]} 24... Qxc7 {[%clk 0:01:31.8]} 25.
Rd1 {[%clk 0:00:48.2]} 25... Qe5 {[%clk 0:01:25.7]} 26. b4 {[%clk 0:00:41.3]}
26... h5 {[%clk 0:01:24.8]} 27. Kb3 {[%clk 0:00:40.4]} 27... h4 {[%clk
0:01:24.6]} 28. Nd5 {[%clk 0:00:32.6]} 28... Nxd5 {[%clk 0:01:21.4]} 29. Bxd5
{[%clk 0:00:33.5]} 29... Qh2 {[%clk 0:01:15.1]} 30. f4 {[%clk 0:00:09.7]} 30...
Qxg2 {[%clk 0:01:12.1]} 31. e5 {[%clk 0:00:06.9]} 31... Qg3+ {[%clk 0:01:06.6]}
32. Rd3 {[%clk 0:00:07.5]} 32... Qxf4 {[%clk 0:01:07]} 33. Bc6+ {[%clk
0:00:07.8]} 33... Kf7 {[%clk 0:01:04.4]} 34. Rf3 {[%clk 0:00:08.7]} 34... g5
{[%clk 0:01:00.4]} 35. Rxf4+ {[%clk 0:00:08.8]} 35... gxf4 {[%clk 0:01:01.3]}
36. c4 {[%clk 0:00:09]} 36... Ke6 {[%clk 0:01:01.6]} 37. c5 {[%clk 0:00:09.5]}
37... Kxe5 {[%clk 0:01:02.5]} 38. Bf3 {[%clk 0:00:09.7]} 38... h3 {[%clk
0:01:00.9]} 39. c6 {[%clk 0:00:09.8]} 39... Kd6 {[%clk 0:01:01.1]} 40. b5 {[%clk
0:00:10.1]} 40... Kc7 {[%clk 0:00:59.4]} 41. a4 {[%clk 0:00:10.2]} 41... Kd6
{[%clk 0:00:59.3]} 42. Kc4 {[%clk 0:00:10.6]} 42... e5 {[%clk 0:00:59.4]} 43.
Kd3 {[%clk 0:00:10.2]} 43... h2 {[%clk 0:00:59.3]} 44. Ke4 {[%clk 0:00:10.1]}
44... Ke6 {[%clk 0:00:59.7]} 45. a5 {[%clk 0:00:09]} 45... Kd6 {[%clk 0:01:00]}
46. Kf5 {[%clk 0:00:08.4]} 46... e4 {[%clk 0:00:57.7]} 47. Bxe4 {[%clk
0:00:08.3]} 47... a6 {[%clk 0:00:52.7]} 48. b6 {[%clk 0:00:07.8]} 48... h1=Q
{[%clk 0:00:53.6]} 49. Bxh1 {[%clk 0:00:07.6]} 49... f3 {[%clk 0:00:54.5]} 50.
Bxf3 {[%clk 0:00:07.8]} 50... Kc5 {[%clk 0:00:55.1]} 51. c7 {[%clk 0:00:08]}
51... Kb4 {[%clk 0:00:56]} 52. c8=Q {[%clk 0:00:08.4]} 52... Kxa5 {[%clk
0:00:56.9]} 53. b7 {[%clk 0:00:08.6]} 53... Kb6 {[%clk 0:00:57.8]} 54. b8=Q+
{[%clk 0:00:08.7]} 54... Ka5 {[%clk 0:00:58.7]} 55. Qc3+ {[%clk 0:00:08.9]}
55... Ka4 {[%clk 0:00:59.4]} 56. Bc6# {[%clk 0:00:09.5]} 1-0